bitfinex/quotes_ETHUSD_20250823
["timestamp","ask_amount","ask_price","bid_price","bid_amount"]
[1755930755929,8.7292,4752.4,4752.3,0.3182]
[1755930756426,8.7392,4752.4,4752.3,0.3182]
[1755930757230,8.7392,4752.4,4752.3,0.7628]
[1755930760432,5.1682,4752.4,4752.3,0.7628]
[1755930760630,8.7372,4752.4,4752.3,0.7628]
[1755930761065,8.2926,4752.4,4752.3,0.7628]
[1755930763364,8.2926,4752.4,4752.3,0.3182]
[1755930763664,8.2926,4752.4,4752.3,0.004]
[1755930763665,9.2383,4752.4,4752.3,0.004]
[1755930763864,9.7109,4752.4,4752.3,0.004]
[1755930764246,9.795225,4752.4,4752.3,0.004]
[1755930765480,10.24703889,4752.4,4752.3,0.004]
[1755930766132,9.77443889,4752.4,4752.3,0.004]
[1755930766333,16.70643889,4752.4,4752.3,0.004]
[1755930766666,16.70743889,4752.4,4752.3,0.004]
[1755930767175,16.728225,4752.4,4752.3,0.004]
[1755930767386,16.255625,4752.4,4752.3,0.004]
[1755930768650,16.685625,4752.4,4752.3,0.004]
[1755930769738,16.255625,4752.4,4752.3,0.004]
[1755930771562,16.7083798,4752.4,4752.3,0.004]
[1755930773964,12.8526798,4752.4,4752.3,0.3118]
[1755930774153,15.7566798,4752.4,4752.3,0.3118]
[1755930774472,11.739925,4752.4,4752.3,0.7713]
[1755930774644,15.304925,4752.4,4752.3,0.7713]
[1755930774845,11.739925,4752.4,4752.3,0.7713]
[1755930775046,15.304925,4752.4,4752.3,0.7713]
[1755930775246,8.372925,4752.4,4752.3,0.7713]
[1755930776747,10.588925,4752.4,4752.3,0.7713]
[1755930776954,8.372925,4752.4,4752.3,0.7713]
[1755930777481,8.372925,4752.4,4752.3,0.7705]
[1755930778378,8.372925,4752.4,4752.3,0.311]
[1755930780689,5.2856,4752.4,4752.3,0.7705]
[1755930781276,5.2856,4752.4,4752.3,0.311]
[1755930781468,5.5788,4752.4,4752.3,0.0032]
[1755930781782,9.6688,4752.4,4752.3,0.0032]
[1755930782779,10.12220857,4752.4,4752.3,0.0032]
[1755930784366,17.05420857,4752.4,4752.3,0.0032]
[1755930784570,17.45343552,4752.4,4752.3,0.0032]
[1755930784887,17.25662072,4752.4,4752.3,0.0032]
[1755930785088,17.45344831,4752.4,4752.3,0.0032]
[1755930785387,18.34959719,4752.4,4752.3,0.0032]
[1755930785588,17.66464486,4752.4,4752.3,0.0032]
[1755930785758,18.3495702,4752.4,4752.3,0.0032]
[1755930786991,20.5655702,4752.4,4752.3,0.0032]
[1755930787373,19.88064486,4752.4,4752.3,0.0032]
[1755930787774,19.55135941,4752.4,4752.3,0.0032]
[1755930788175,19.55121277,4752.4,4752.3,0.0032]
[1755930789869,20.23604037,4752.4,4752.3,0.0032]
[1755930790266,19.66917694,4752.4,4752.3,0.0032]
[1755930791311,19.99847503,4752.4,4752.3,0.0032]
[1755930794318,19.9982743,4752.4,4752.3,0.0032]
[1755930794719,19.9982743,4752.4,4752.3,0.311]
[1755930794720,9.71916767,4752.4,4752.3,0.311]
[1755930794935,9.71916767,4752.4,4752.3,0.7705]
[1755930794936,12.64374457,4752.4,4752.3,0.7705]
[1755930795116,12.74934457,4752.4,4752.3,0.7705]
[1755930795292,16.40934457,4752.4,4752.3,0.7705]
[1755930795491,15.955936,4752.4,4752.3,0.7705]
[1755930795723,15.295936,4752.4,4752.3,0.7705]
[1755930796294,1.808936,4752.4,4752.3,0.7705]
[1755930796493,1.7246,4752.4,4752.3,0.7705]
[1755930796726,5.2826,4752.4,4752.3,0.7705]
[1755930797894,0.1066,4752.4,4752.3,0.7705]
[1755930798200,3.6646,4752.4,4752.3,0.7705]
[1755930798590,0.95526325,4752.4,4752.3,0.7705]
[1755930798905,1.618,4752.6,4752.3,0.8761]
[1755930798906,3.558,4752.6,4752.3,0.8761]
[1755930799119,0.001,4752.7,4752.4,0.435]
[1755930799343,0.001,4752.7,4752.6,0.2966]
[1755930799696,0.001,4752.7,4752.6,0.4022]
[1755930799914,0.001,4752.7,4752.6,0.8372]
[1755930802535,0.001,4752.7,4752.6,1.08554424]
[1755930803849,0.001,4752.7,4752.6,0.97994424]
[1755930804043,0.001,4752.7,4752.6,0.7316]
[1755930804438,0.001,4752.7,4752.6,0.2966]
[1755930804753,0.001,4752.7,4752.6,0.7316]
[1755930804754,0.1066,4752.7,4752.6,0.7316]
[1755930805522,0.001,4752.7,4752.6,0.7316]
[1755930806722,0.1066,4752.7,4752.6,0.2966]
[1755930807154,0.1066,4752.7,4752.6,0.7316]
[1755930810859,0.001,4752.7,4752.6,0.7316]
[1755930814660,0.001,4752.7,4752.6,0.2966]
[1755930816150,0.001,4752.7,4752.6,0.7316]
[1755930819245,0.001,4752.7,4752.6,0.8372]
[1755930820682,0.001,4752.7,4752.6,0.85824111]
[1755930820976,0.001,4752.7,4752.6,1.86818343]
[1755930821277,0.001,4752.7,4752.6,1.93141132]
[1755930822184,0.001,4752.7,4752.6,1.95245243]
[1755930822588,0.001,4752.7,4752.6,2.59141132]
[1755930826588,0.001,4752.7,4752.6,5.59141132]
[1755930827298,0.001,4752.7,4752.6,9.14441132]
[1755930827787,0.001,4753.4,4752.7,3.8797204]
[1755930827990,0.001,4753.4,4753.3,12.53058077]
[1755930828196,0.001,4753.4,4753.3,17.80538077]
[1755930828372,0.001,4753.4,4753.3,18.26858077]
[1755930830802,0.001,4753.4,4753.3,18.35282377]
[1755930832305,0.001,4753.4,4753.3,18.51304104]
[1755930832470,0.001,4753.4,4753.3,20.43034514]
[1755930835193,0.001,4753.4,4753.3,16.41414514]
[1755930835400,0.001,4753.4,4753.3,20.42934514]
[1755930835694,0.001,4753.4,4753.3,20.46592787]
[1755930836211,0.001,4753.4,4753.3,20.92912787]
[1755930837484,0.001,4753.4,4753.3,20.46592787]
[1755930838380,0.001,4753.4,4753.3,7.6799471]
[1755930838716,0.001,4753.4,4753.3,9.018043]
[1755930838717,0.2907,4753.4,4753.3,9.018043]
[1755930839122,0.001,4753.4,4753.3,9.305843]
[1755930840027,0.001,4753.4,4753.3,18.53982377]
[1755930840210,0.001,4753.4,4753.3,19.00302377]
[1755930842622,0.001,4753.4,4753.3,18.53982377]
[1755930842815,0.001,4753.4,4753.3,20.40954806]
[1755930842993,0.2907,4753.4,4753.3,10.88776729]
[1755930843194,0.7541,4753.4,4753.3,8.2738]
[1755930844319,0.001,4753.4,4753.3,8.2738]
[1755930844729,0.001,4753.4,4753.3,8.5616]
[1755930851627,0.001,4753.4,4753.3,9.6848]
[1755930851828,0.001,4753.4,4753.3,9.769039]
[1755930852124,0.001,4753.4,4753.3,10.93488043]
[1755930852541,0.001,4753.4,4753.3,12.82425577]
[1755930853136,0.001,4753.4,4753.3,12.36105577]
[1755930853331,0.2907,4753.4,4753.3,10.18388043]
[1755930853544,0.2907,4753.4,4753.3,12.07325577]
[1755930853762,0.001,4753.4,4753.3,12.07325577]
[1755930853924,0.001,4753.4,4753.3,12.36105577]
[1755930854247,0.001,4753.4,4753.3,12.82425577]
[1755930854414,0.001,4753.4,4753.3,10.93488043]
[1755930855023,0.001,4753.4,4753.3,10.47168043]
[1755930855348,0.001,4753.4,4753.3,10.93488043]
[1755930855646,1.973e-05,4753.4,4753.3,10.93488043]
[1755930856142,1.973e-05,4753.4,4753.3,11.43488043]
[1755930860829,1.973e-05,4753.4,4753.3,10.97168043]
[1755930861746,1.973e-05,4753.4,4753.3,10.68388043]
[1755930862334,1.973e-05,4753.4,4753.3,10.98258043]
[1755930865831,1.973e-05,4753.4,4753.3,11.41818043]
[1755930866660,1.973e-05,4753.4,4753.3,10.68388043]
[1755930867666,1.973e-05,4753.4,4753.3,10.98258043]
[1755930873672,0.30221973,4753.4,4753.3,10.68388043]
[1755930873965,0.73641973,4753.4,4753.3,10.68388043]
[1755930874978,0.73641973,4753.4,4753.3,10.68188043]
[1755930875671,1.973e-05,4753.4,4753.3,10.68188043]
[1755930875858,0.30221973,4753.4,4753.3,10.68188043]
[1755930876945,1.973e-05,4753.4,4753.3,10.68188043]
[1755930877649,0.38421973,4753.6,4753.4,3.66]
[1755930877854,0.001,4753.7,4753.6,0.66]
[1755930878073,0.3032,4753.7,4753.6,7.3148]
[1755930878372,0.3032,4753.7,4753.6,7.399045]
[1755930880076,0.7374,4753.7,4753.6,7.399045]
[1755930881644,0.7374,4753.7,4753.6,3.849045]
[1755930881850,0.7374,4753.7,4753.6,9.20226561]
[1755930882355,0.7374,4753.7,4753.6,8.54226561]
[1755930882765,0.7374,4753.7,4753.6,0.1048]
[1755930882978,0.7374,4753.7,4753.6,3.6548]
[1755930884888,0.7374,4753.7,4753.6,3.6538]
[1755930891592,0.001,4753.7,4753.6,3.6538]
[1755930891795,0.001,4753.7,4753.6,4.62503668]
[1755930891959,0.001,4753.7,4753.6,6.28337775]
[1755930894077,0.001,4753.7,4753.6,9.75467775]
[1755930894793,0.001,4753.7,4753.6,9.75867775]
[1755930895309,0.001,4753.7,4753.6,9.28737775]
[1755930895622,0.02,4753.8,4753.7,0.66]
[1755930895763,0.001,4754.3,4754.2,12.89398077]
[1755930895961,0.001,4754.3,4754.2,18.35018077]
[1755930896192,0.001,4754.3,4754.2,18.82148077]
[1755930896397,0.001,4754.3,4754.2,18.92628077]
[1755930896969,0.001,4754.3,4754.2,19.01050977]
[1755930897183,0.001,4754.3,4754.2,20.91156075]
[1755930897870,0.001,4754.4,4754.3,3.66]
[1755930898069,0.001,4754.4,4754.3,4.4215]
[1755930900502,0.001,4754.4,4754.3,4.505721]
[1755930901682,0.3059,4754.4,4754.3,3.744221]
[1755930901884,0.001,4754.4,4754.3,5.76957884]
[1755930902969,0.001,4754.4,4754.3,6.05977884]
[1755930907706,0.001,4754.4,4754.3,5.76957884]
[1755930907707,0.3059,4754.4,4754.3,5.76957884]
[1755930908007,0.7754,4754.4,4754.3,5.76957884]
[1755930908376,0.7754,4754.4,4754.3,5.10957884]
[1755930908576,0.7754,4754.4,4754.3,6.631221]
[1755930910098,0.7754,4754.4,4754.3,0.084221]
[1755930910808,0.7754,4754.4,4754.3,3.631221]
[1755930916597,0.8802,4754.4,4753.8,0.004]
[1755930916794,0.4695,4754.3,4753.9,3.547]
[1755930917111,0.3049,4754.0,4753.9,3.547]
[1755930917421,0.7744,4754.0,4753.9,3.547]
[1755930917997,0.7744,4754.0,4753.8,0.004]
[1755930918198,0.5743,4753.9,4753.8,0.004]
[1755930918402,0.8785,4753.9,4753.8,0.004]
[1755930920102,0.409,4753.9,4753.8,0.004]
[1755930920307,0.8462,4753.9,4753.8,0.004]
[1755930920735,0.3042,4753.9,4753.8,0.004]
[1755930921107,0.7414,4753.9,4753.8,0.004]
[1755930922418,0.3042,4753.9,4753.8,0.004]
[1755930922951,0.4372,4754.2,4753.8,0.004]
[1755930923148,0.3042,4753.9,4753.8,0.004]
[1755930924151,0.7414,4753.9,4753.8,0.004]
[1755930931769,0.82568,4753.9,4753.8,0.004]
[1755930932627,0.7414,4753.9,4753.8,0.004]
[1755930933837,0.1048,4754.1,4753.8,0.3053]
[1755930935665,0.1048,4754.1,4753.8,0.004]
[1755930935964,0.3042,4753.9,4753.8,0.004]
[1755930936467,0.7414,4753.9,4753.8,0.004]
[1755930937966,0.1048,4754.1,4753.8,0.3053]
[1755930939256,0.1048,4754.1,4753.8,0.004]
[1755930941379,0.1048,4754.1,4754.0,0.3013]
[1755930941748,0.1048,4754.1,4753.8,0.004]
[1755930942080,0.3042,4753.9,4753.8,0.004]
[1755930946187,0.7414,4753.9,4753.8,0.004]
[1755930947113,0.3042,4753.9,4753.8,0.004]
[1755930948786,0.7722,4753.9,4753.8,0.004]
[1755930951595,0.1048,4754.1,4753.8,0.004]
[1755930956163,0.1048,4754.1,4754.0,0.2854]
[1755930956364,0.001,4754.3,4754.0,0.2854]
[1755930956578,0.001,4754.3,4754.1,0.4322]
[1755930956764,0.001,4754.3,4754.2,0.2854]
[1755930957689,0.001,4754.3,4754.0,0.1048]
[1755930958092,0.001,4754.3,4753.8,0.004]
[1755930958374,0.469,4754.3,4753.8,0.004]
[1755930958574,0.001,4754.3,4753.8,0.004]
[1755930960801,0.468,4754.2,4753.8,0.004]
[1755930961583,0.001,4754.3,4753.8,0.004]
[1755930961803,0.001,4754.3,4754.2,0.2854]
[1755930962603,0.001,4754.3,4754.2,0.7176]
[1755930962907,0.001,4754.3,4754.2,0.2854]
[1755930966025,0.001,4754.3,4754.2,0.3912]
[1755930966205,0.001,4754.3,4754.2,0.8234]
[1755930966413,0.001,4754.3,4754.2,0.84443403]
[1755930966576,0.001,4754.3,4754.2,10.0784148]
[1755930966771,0.001,4754.3,4754.2,11.68852225]
[1755930967374,0.001,4754.7,4754.3,0.66]
[1755930967604,0.021,4754.8,4754.7,0.66]
[1755930967802,0.021,4754.8,4754.7,7.51043182]
[1755930967980,0.021,4754.8,4754.7,7.4894]
[1755930968186,0.021,4754.8,4754.7,9.03139295]
[1755930968598,0.001,4755.3,4754.7,18.26537372]
[1755930968927,0.001,4755.3,4754.8,1.0922]
[1755930969105,0.001,4755.3,4754.8,1.3776]
[1755930969297,0.001,4755.3,4754.8,3.21461737]
[1755930970590,0.001,4755.3,4754.8,10.61158077]
[1755930971621,0.001,4755.3,4755.0,0.66]
[1755930971780,0.001,4755.3,4754.9,3.0]
[1755930971781,0.001,4755.3,4755.2,0.9454]
[1755930971981,0.001,4755.3,4755.2,1.0502]
[1755930972286,0.001,4755.3,4755.2,1.4824]
[1755930972492,0.001,4755.3,4755.2,3.03993416]
[1755930974419,0.001,4755.3,4755.2,2.32233416]
[1755930974621,0.001,4755.3,4755.2,4.5922]
[1755930974790,0.001,4755.3,4755.2,8.0244]
[1755930974985,0.001,4755.3,4755.2,7.5922]
[1755930975511,0.001,4755.3,4755.2,8.0244]
[1755930975715,0.001,4755.3,4755.2,8.108616]
[1755930975880,0.001,4755.3,4755.2,10.00457568]
[1755930980189,0.021,4755.8,4755.3,3.66]
[1755930980395,0.021,4755.8,4755.3,4.65616086]
[1755930980592,0.021,4755.8,4755.4,0.66]
[1755930980892,0.021,4755.8,4755.7,12.89398077]
[1755930981210,0.021,4755.8,4755.7,14.95153257]
[1755930981519,0.021,4755.8,4755.7,15.49643157]
[1755930981713,0.021,4755.8,4755.7,15.60123157]
[1755930983227,0.021,4755.8,4755.7,15.86356981]
[1755930984896,0.021,4755.8,4755.7,19.40456981]
[1755930986431,0.021,4755.8,4755.7,15.14053157]
[1755930986631,0.021,4755.8,4755.7,19.40356981]
[1755930987034,0.021,4755.8,4755.7,18.68053157]
[1755930987235,0.021,4755.8,4755.7,15.14053157]
[1755930987534,0.021,4755.8,4755.7,18.68053157]
[1755930990916,0.021,4755.8,4755.7,15.14053157]
[1755930991245,0.001,4755.9,4755.8,3.0]
[1755930991541,0.001,4755.9,4755.8,6.17944319]
[1755930991755,0.001,4755.9,4755.8,6.15841624]
[1755930991952,0.001,4755.9,4755.8,7.26901624]
[1755930993352,0.001,4755.9,4755.8,6.545978]
[1755930995221,0.001,4755.9,4755.8,6.565978]
[1755930997929,0.001,4755.9,4755.8,7.28901624]
[1755930998844,0.001,4755.9,4755.8,6.82831624]
[1755930999654,0.001,4755.9,4755.8,10.36731624]
[1755931000527,0.001,4755.9,4755.8,10.34731624]
[1755931000852,0.001,4755.9,4755.8,10.05381624]
[1755931001257,0.001,4755.9,4755.8,6.80831624]
[1755931001466,0.001,4755.9,4755.8,10.05381624]
[1755931001657,0.001,4755.9,4755.8,10.34731624]
[1755931002556,0.3036,4755.9,4755.8,10.05281624]
[1755931002961,0.001,4755.9,4755.8,10.34631624]
[1755931003152,0.3036,4755.9,4755.8,10.05281624]
[1755931003550,0.001,4755.9,4755.8,6.51481624]
[1755931003752,0.001,4755.9,4755.8,10.05281624]
[1755931004067,0.001,4755.9,4755.8,10.34631624]
[1755931006065,0.001,4755.9,4755.8,10.05281624]
[1755931006387,0.001,4755.9,4755.8,10.34631624]
[1755931006592,0.001,4755.9,4755.8,6.51481624]
[1755931006861,0.001,4755.9,4755.8,10.34631624]
[1755931007433,0.001,4755.9,4755.8,10.80701624]
[1755931008852,0.001,4755.9,4755.8,15.06701624]
[1755931009250,4.583e-05,4755.9,4755.8,15.06701624]
[1755931009959,0.021,4756.8,4755.9,0.92233824]
[1755931010134,0.021,4756.8,4756.7,12.89398077]
[1755931010337,0.021,4756.8,4756.7,16.53678077]
[1755931010538,0.021,4756.8,4756.7,17.26848077]
[1755931010737,0.021,4756.8,4756.7,17.72868077]
[1755931010972,0.021,4756.8,4756.7,19.52778267]
[1755931011182,0.021,4756.8,4756.7,15.52958267]
[1755931011381,0.021,4756.8,4756.7,19.06758267]
[1755931011871,0.3313,4756.8,4756.7,18.77398267]
[1755931012370,0.3313,4756.8,4756.7,18.77298267]
[1755931012767,0.021,4756.8,4756.7,18.77298267]
[1755931012938,0.021,4756.8,4756.7,19.06658267]
[1755931013541,0.3313,4756.8,4756.7,18.77298267]
[1755931013874,0.021,4756.8,4756.7,19.06658267]
[1755931014473,0.021,4756.8,4756.7,15.52958267]
[1755931014640,0.021,4756.8,4756.7,18.77298267]
[1755931015371,0.3313,4756.8,4756.7,18.77298267]
[1755931015742,0.3313,4756.8,4756.7,15.23598267]
[1755931015970,0.3313,4756.8,4756.7,18.77298267]
[1755931016384,0.021,4756.8,4756.7,15.52958267]
[1755931016682,0.021,4756.8,4756.7,19.06658267]
[1755931017187,0.021,4756.8,4756.7,9.5390019]
[1755931017545,0.7694,4756.8,4756.7,9.5390019]
[1755931018162,0.3313,4756.8,4756.7,9.5390019]
[1755931018362,0.021,4756.8,4756.7,6.0020019]
[1755931018562,0.3313,4756.8,4756.7,6.0020019]
[1755931018768,0.3313,4756.8,4756.7,9.5390019]
[1755931019011,0.7694,4756.8,4756.7,9.5390019]
[1755931019182,0.3313,4756.8,4756.7,6.0020019]
[1755931019349,0.7694,4756.8,4756.7,9.5390019]
[1755931019777,0.7694,4756.8,4756.7,6.0020019]
[1755931019985,0.7694,4756.8,4756.7,9.5380019]
[1755931020311,0.021,4756.8,4756.7,6.2956019]
[1755931020591,0.021,4756.8,4756.7,10.09394014]
[1755931020986,0.021,4756.8,4756.7,6.26434014]
[1755931021291,0.3313,4756.8,4756.7,9.80034014]
[1755931021502,0.3313,4756.8,4756.7,6.0020019]
[1755931021695,0.021,4756.8,4756.7,9.5380019]
[1755931022009,0.3313,4756.8,4756.7,9.5380019]
[1755931022512,0.021,4756.8,4756.7,9.5380019]
[1755931022809,0.3313,4756.8,4756.7,9.5380019]
[1755931023105,0.7694,4756.8,4756.7,9.5380019]
[1755931023269,0.3313,4756.8,4756.7,6.0020019]
[1755931023465,0.3313,4756.8,4756.7,9.5380019]
[1755931023662,0.021,4756.8,4756.7,9.5380019]
[1755931023965,0.7694,4756.8,4756.7,9.5380019]
[1755931024556,0.7694,4756.8,4756.7,11.1530019]
[1755931024757,0.3313,4756.8,4756.7,11.1530019]
[1755931024955,0.3313,4756.8,4756.7,7.6170019]
[1755931025193,0.3313,4756.8,4756.7,11.1530019]
[1755931025395,0.7694,4756.8,4756.7,11.1530019]
[1755931025766,0.3313,4756.8,4756.7,11.1530019]
[1755931027069,0.3313,4756.8,4756.7,5.6939]
[1755931027070,0.7694,4756.8,4756.7,5.6939]
[1755931027474,0.7694,4756.8,4756.7,2.1579]
[1755931027778,0.7694,4756.8,4756.7,5.6939]
[1755931027984,0.7694,4756.8,4756.7,2.1579]
[1755931028167,0.7694,4756.8,4756.7,5.6939]
[1755931029894,0.3313,4756.8,4756.7,9.26329]
[1755931030260,0.021,4756.8,4756.7,19.45087077]
[1755931030959,0.021,4756.8,4756.7,20.17340901]
[1755931031159,0.021,4756.8,4756.7,19.41960901]
[1755931031391,0.021,4756.8,4756.7,19.71320901]
[1755931031600,0.021,4756.8,4756.7,20.17340901]
[1755931035206,0.021,4756.8,4756.7,16.17720901]
[1755931035431,0.3313,4756.8,4756.7,15.62127077]
[1755931035705,0.7694,4756.8,4756.7,9.92329]
[1755931036106,0.7694,4756.8,4756.7,6.38729]
[1755931036289,0.7694,4756.8,4756.7,9.92329]
[1755931037433,0.021,4756.8,4756.7,10.37442824]
[1755931037725,0.001,4757.3,4756.8,4.95978106]
[1755931037928,0.001,4757.3,4757.2,3.7648]
[1755931038078,0.001,4757.3,4757.2,7.5944]
[1755931038817,0.001,4757.3,4757.2,7.3008]
[1755931039298,0.001,4757.3,4757.2,7.7389]
[1755931039502,0.7578,4757.3,4757.2,9.56616618]
[1755931039697,0.001,4757.3,4757.2,9.56616618]
[1755931039901,0.001,4757.3,4757.2,9.85886618]
[1755931040098,0.001,4757.3,4757.2,9.56616618]
[1755931040302,0.001,4757.3,4757.2,9.85886618]
[1755931041101,0.3046,4757.3,4757.2,9.56616618]
[1755931041678,0.3046,4757.3,4757.2,6.03016618]
[1755931041908,0.001,4757.3,4757.2,9.56616618]
[1755931042210,0.3046,4757.3,4757.2,6.03016618]
[1755931042415,0.7578,4757.3,4757.2,9.56516618]
[1755931042994,0.7578,4757.3,4757.2,7.7379]
[1755931044079,0.7578,4757.3,4757.2,1.2029]
[1755931044311,0.3046,4757.3,4757.2,4.7379]
[1755931044515,0.001,4757.3,4757.2,4.7379]
[1755931044703,0.001,4757.3,4757.2,5.0306]
[1755931045014,0.001,4757.3,4757.2,10.1251406]
[1755931045324,0.001,4757.3,4757.2,10.5930406]
[1755931046029,0.001,4757.3,4757.2,10.1251406]
[1755931046590,0.001,4757.3,4757.2,6.5901406]
[1755931046816,0.3046,4757.3,4757.2,9.57010236]
[1755931047207,0.3046,4757.3,4757.2,6.03510236]
[1755931047392,0.3046,4757.3,4757.2,9.57010236]
[1755931047595,0.001,4757.3,4757.2,9.86280236]
[1755931048231,0.001,4757.3,4757.2,6.03510236]
[1755931048430,0.001,4757.3,4757.2,9.57010236]
[1755931048617,0.7578,4757.3,4757.2,9.57110236]
[1755931048835,0.7578,4757.3,4757.2,7.0789]
[1755931049545,0.7578,4757.3,4757.2,7.7389]
[1755931050230,0.7578,4757.3,4757.2,4.2029]
[1755931050433,0.7578,4757.3,4757.2,7.7389]
[1755931050609,0.7578,4757.3,4757.2,8.61653428]
[1755931051311,0.7578,4757.3,4757.2,7.95653428]
[1755931051575,0.7578,4757.3,4757.2,7.0789]
[1755931051716,0.7578,4757.3,4757.2,3.5429]
[1755931052041,0.7578,4757.3,4757.2,7.0789]
[1755931053048,0.3046,4757.3,4757.2,7.0789]
[1755931053213,0.001,4757.3,4757.2,8.0316]
[1755931053408,0.001,4757.3,4757.2,9.86190236]
[1755931054741,0.001,4757.3,4757.2,10.1242406]
[1755931055869,0.001,4757.3,4757.2,9.56920236]
[1755931056243,0.001,4757.3,4757.2,9.86190236]
[1755931057047,0.001,4757.3,4757.2,6.32590236]
[1755931057355,0.001,4757.3,4757.2,9.86090236]
[1755931057867,0.001,4757.3,4757.2,6.32590236]
[1755931058054,0.3046,4757.3,4757.2,9.56820236]
[1755931058454,0.001,4757.3,4757.2,9.56820236]
[1755931059270,0.001,4757.3,4757.2,9.86090236]
[1755931059968,0.001,4757.3,4757.2,6.03320236]
[1755931060169,0.3046,4757.3,4757.2,9.56820236]
[1755931060637,0.022,4757.8,4757.3,3.66]
[1755931060834,0.00137215,4757.8,4757.7,13.18668077]
[1755931061039,0.002,4758.1,4757.8,13.928]
[1755931061238,0.04,4758.8,4758.0,4.0575]
[1755931061438,0.04,4758.8,4758.7,12.89398077]
[1755931061638,0.04,4758.8,4758.7,18.70781901]
[1755931061870,0.04,4758.8,4758.7,19.17571901]
[1755931062179,0.04,4758.8,4758.7,9.94173824]
[1755931062336,0.04,4758.8,4758.7,18.70781901]
[1755931062549,0.04,4758.8,4758.7,20.57938929]
[1755931062842,0.04,4758.8,4758.7,21.04728929]
[1755931063975,0.04,4758.8,4758.7,21.04628929]
[1755931064374,0.04,4758.8,4758.7,17.50928929]
[1755931064579,0.04,4758.8,4758.7,21.04628929]
[1755931064947,0.04,4758.8,4758.7,21.04728929]
[1755931065459,0.04,4758.8,4758.7,21.54728929]
[1755931065980,0.04,4758.8,4758.7,17.54138929]
[1755931066156,0.04,4758.8,4758.7,21.54628929]
[1755931066677,0.04,4758.8,4758.7,17.54138929]
[1755931066883,0.04,4758.8,4758.7,21.07738929]
[1755931067176,0.3436,4758.8,4758.7,20.78468929]
[1755931067648,0.3436,4758.8,4758.7,20.78568929]
[1755931067849,0.3436,4758.8,4758.7,17.78568929]
[1755931068382,0.8092,4758.8,4758.7,17.78568929]
[1755931068589,0.8092,4758.8,4758.7,5.01470852]
[1755931068786,0.8092,4758.8,4758.7,8.7568]
[1755931069083,0.8092,4758.8,4758.7,5.2198]
[1755931069283,0.8092,4758.8,4758.7,9.4158]
[1755931069782,0.04,4758.8,4758.7,18.54498077]
[1755931069992,0.04,4758.8,4758.7,19.22721901]
[1755931070150,0.04,4758.8,4758.7,21.08171709]
[1755931071384,0.02,4759.8,4758.8,3.92233824]
[1755931071588,0.02,4759.8,4759.7,1.0799]
[1755931071787,0.02,4759.8,4759.7,10.63128808]
[1755931071965,0.02,4759.8,4759.7,7.09228808]
[1755931072158,0.02,4759.8,4759.7,10.81618808]
[1755931072486,0.02,4759.8,4759.7,7.27718808]
[1755931072664,0.02,4759.8,4759.7,10.81618808]
[1755931072665,0.3167,4759.8,4759.7,10.81618808]
[1755931073287,0.02,4759.8,4759.7,10.81618808]
[1755931073489,0.3167,4759.8,4759.7,7.27718808]
[1755931073668,0.02,4759.8,4759.7,10.81518808]
[1755931074084,0.02,4759.8,4759.7,11.13028808]
[1755931075190,0.02,4759.8,4759.7,7.27718808]
[1755931075393,0.02,4759.8,4759.7,10.81518808]
[1755931076791,0.3167,4759.8,4759.7,10.81518808]
[1755931078800,0.02,4759.8,4759.7,10.81518808]
[1755931079175,0.022,4759.8,4759.7,10.81518808]
[1755931079902,0.022,4759.8,4759.7,11.13028808]
[1755931082010,0.022,4759.8,4759.7,10.81518808]
[1755931082207,0.3187,4759.8,4759.7,7.27718808]
[1755931082385,0.7843,4759.8,4759.7,7.27718808]
[1755931082575,0.7843,4759.8,4759.7,8.7558]
[1755931082805,0.7843,4759.8,4759.7,5.7558]
[1755931083006,0.7843,4759.8,4759.7,2.2198]
[1755931083210,0.7843,4759.8,4759.7,5.2558]
[1755931083583,0.7843,4759.8,4759.7,1.7198]
[1755931083784,0.7843,4759.8,4759.7,5.2558]
[1755931085778,0.7843,4759.8,4759.7,5.2548]
[1755931087103,0.7843,4759.8,4759.7,1.7198]
[1755931087309,0.7843,4759.8,4759.7,5.2548]
[1755931087673,0.7843,4759.8,4759.7,1.7198]
[1755931087908,0.7843,4759.8,4759.7,5.2538]
[1755931089628,0.7843,4759.8,4759.7,1.7198]
[1755931089824,0.7843,4759.8,4759.7,5.2538]
[1755931091430,0.3187,4759.8,4759.7,5.2538]
[1755931091594,0.3187,4759.8,4759.7,5.77918]
[1755931091595,0.022,4759.8,4759.7,5.77918]
[1755931091798,0.022,4759.8,4759.7,6.75428]
[1755931092635,0.3187,4759.8,4759.7,1.7198]
[1755931092811,0.7843,4759.8,4759.7,5.2538]
[1755931093307,0.7843,4759.8,4759.7,5.2548]
[1755931093511,0.91273,4759.8,4759.7,1.615]
[1755931093827,0.91273,4759.8,4759.7,5.151]
[1755931094130,0.91273,4759.8,4759.7,1.615]
[1755931094311,0.91273,4759.8,4759.7,5.151]
[1755931094921,0.91273,4759.8,4759.7,5.15]
[1755931097020,0.91273,4759.8,4759.7,1.54005007]
[1755931097211,0.91273,4759.8,4759.7,5.07505007]
[1755931097912,0.91273,4759.8,4759.7,1.54005007]
[1755931098112,0.91273,4759.8,4759.7,3.535]
[1755931099126,0.91273,4759.8,4759.6,3.535]
[1755931099339,0.704153,4759.7,4759.6,3.535]
[1755931099538,1.002853,4759.7,4759.6,3.535]